bitfinex-derivatives/quotes_BTCF0:USTF0_20251120
["timestamp","ask_amount","ask_price","bid_price","bid_amount"]
[1763681822536,0.00017249,86972.0,86971.0,0.0639018]
[1763681822725,0.3608,86980.0,86979.0,0.05239]
[1763681822921,0.36299803,86980.0,86979.0,0.16539]
[1763681824021,0.3608,86980.0,86979.0,0.16539]
[1763681824337,0.00017249,86988.0,86987.0,0.0638997]
[1763681824635,0.04012902,86994.0,86993.0,0.05239]
[1763681824835,0.00035,87010.0,87009.0,0.05239]
[1763681825031,0.00254803,87010.0,87009.0,0.1768968]
[1763681825529,0.00035,87010.0,87009.0,0.1768968]
[1763681825836,0.39084657,87010.0,87009.0,0.16539]
[1763681826232,0.3930446,87010.0,87009.0,0.1768968]
[1763681826426,0.3940446,87010.0,87009.0,0.1768968]
[1763681826823,0.4451446,87010.0,87001.0,0.00017249]
[1763681827031,0.02553,87002.0,87001.0,0.02603249]
[1763681827236,0.0318946,87002.0,87001.0,0.05256249]
[1763681827732,0.0839946,87002.0,87001.0,0.11317249]
[1763681828529,0.0318946,87002.0,87001.0,0.17707039]
[1763681829026,0.0328946,87002.0,87001.0,0.16556249]
[1763681829637,0.0849946,87002.0,87001.0,0.00017249]
[1763681829828,0.00999999,86990.0,86970.0,0.01434]
[1763681830141,0.0636103,86983.0,86946.0,0.3723151]
[1763681830431,0.06031127,86979.0,86975.0,0.05239]
[1763681830636,0.06031127,86982.0,86981.0,0.0639005]
[1763681830834,0.3608,86984.0,86983.0,0.05239]
[1763681831030,0.44463523,86984.0,86978.0,0.11296]
[1763681831234,0.3608,86982.0,86978.0,0.11296]
[1763681831431,0.00219803,86979.0,86978.0,0.11296]
[1763681831629,0.03173523,86979.0,86978.0,0.16535]
[1763681832426,0.0295372,86979.0,86978.0,0.16535]
[1763681832628,0.3608,86982.0,86981.0,0.05239]
[1763681832834,0.39256288,86982.0,86981.0,0.0639005]
[1763681833124,0.0521,86979.0,86978.0,0.11296]
[1763681833331,0.08386288,86979.0,86978.0,0.11296]
[1763681833939,0.03176288,86979.0,86978.0,0.16535]
[1763681834842,0.02956485,86979.0,86978.0,0.05239]
[1763681835029,0.03176288,86979.0,86978.0,0.05239]
[1763681835230,0.03276288,86979.0,86978.0,0.05239]
[1763681835830,0.05829288,86979.0,86978.0,0.02586]
[1763681836031,0.08486288,86979.0,86973.0,0.00017249]
[1763681836340,0.4129,86974.0,86973.0,0.00017249]
[1763681836539,0.44466288,86974.0,86973.0,0.00017249]
[1763681836844,0.0115125,86966.0,86954.0,0.011514]
[1763681837138,0.38852803,86958.0,86957.0,0.02586]
[1763681837338,0.00999999,86950.0,86942.0,0.41319]
[1763681837640,0.02772803,86943.0,86942.0,0.02586]
[1763681837831,0.0521,86938.0,86937.0,0.00017249]
[1763681838033,0.0572702,86938.0,86937.0,0.00017249]
[1763681838239,0.0572702,86938.0,86926.0,0.01434]
[1763681838240,0.3925402,86938.0,86926.0,0.01434]
[1763681838440,0.3608,86928.0,86917.0,0.01168678]
[1763681838638,0.3608,86928.0,86917.0,0.06399578]
[1763681838639,0.3608,86920.0,86917.0,0.06399578]
[1763681838942,0.00219803,86927.0,86926.0,0.0639078]
[1763681839137,0.03171287,86927.0,86926.0,0.05239]
[1763681839332,0.03171287,86927.0,86926.0,0.04539]
[1763681839534,0.05724287,86927.0,86917.0,8.678e-05]
[1763681839838,0.02951484,86926.0,86925.0,0.0782479]
[1763681840044,0.03171287,86926.0,86925.0,0.0782479]
[1763681840539,0.02951484,86926.0,86925.0,0.0782479]
[1763681840739,0.00017249,86935.0,86934.0,0.0639067]
[1763681840941,0.3608,86937.0,86936.0,0.05239]
[1763681840942,0.32151249,86937.0,86936.0,0.05239]
[1763681841135,0.32371052,86937.0,86936.0,0.05239]
[1763681842639,0.3608,86944.0,86943.0,0.0639055]
[1763681842844,0.00017249,86945.0,86944.0,0.05239]
[1763681843144,0.06027427,86964.0,86961.0,0.0115132]
[1763681843441,0.00219803,86964.0,86963.0,0.05239]
[1763681843634,0.00219803,86964.0,86963.0,0.0639029]
[1763681844245,0.05429803,86964.0,86963.0,0.0115129]
[1763681844446,0.36299803,86964.0,86955.0,0.02603249]
[1763681844637,0.3608,86957.0,86956.0,0.0639038]
[1763681845135,0.36299803,86957.0,86956.0,0.05239]
[1763681845532,0.36299803,86957.0,86955.0,0.00017249]
[1763681845533,0.0521,86956.0,86955.0,0.00017249]
[1763681845739,0.05429803,86956.0,86955.0,0.00017249]
[1763681846049,0.00999999,86950.0,86941.0,0.0115158]
[1763681846251,0.3608,86944.0,86943.0,0.02586]
[1763681846558,0.0521,86941.0,86940.0,0.09608]
[1763681846745,0.0521,86941.0,86927.0,0.3608]
[1763681846746,0.00219803,86941.0,86939.0,0.05239]
[1763681846941,0.36299803,86941.0,86940.0,0.05239]
[1763681847854,0.00999999,86940.0,86935.0,0.0115165]
[1763681848145,0.00219803,86939.0,86935.0,0.0115165]
[1763681848347,0.00219803,86939.0,86931.0,0.01168959]
[1763681848653,0.00219803,86939.0,86932.0,0.11312]
[1763681848853,0.00219803,86939.0,86931.0,0.00017249]
[1763681849150,0.00219803,86939.0,86934.0,0.0115166]
[1763681849555,0.00219803,86939.0,86931.0,0.00017249]
[1763681849845,0.00219803,86939.0,86935.0,0.0115165]
[1763681850053,0.00017249,86949.0,86948.0,0.05239]
[1763681850248,0.00237052,86949.0,86948.0,0.05239]
[1763681850554,0.00237052,86949.0,86940.0,0.1245959]
[1763681850555,0.05447052,86949.0,86940.0,0.1245959]
[1763681850849,0.3608,86944.0,86940.0,0.0115159]
[1763681851062,0.00219803,86941.0,86940.0,0.0608859]
[1763681851244,0.05023803,86941.0,86940.0,0.11308]
[1763681851552,0.05023803,86941.0,86934.0,0.1245966]
[1763681851749,0.05023803,86941.0,86934.0,0.0115166]
[1763681851946,0.04804,86935.0,86934.0,0.0115166]
[1763681852252,0.04804,86932.0,86931.0,0.00017249]
[1763681852438,0.41103803,86932.0,86931.0,0.00017249]
[1763681852638,0.44034275,86932.0,86931.0,0.00017249]
[1763681853350,0.04927,86918.0,86917.0,8.678e-05]
[1763681853546,0.03150275,86918.0,86917.0,0.04938678]
[1763681853852,0.00219803,86918.0,86917.0,0.04938678]
[1763681854041,0.3608,86932.0,86917.0,8.678e-05]
[1763681854248,0.36299803,86932.0,86931.0,0.0493]
[1763681854544,0.39229605,86932.0,86931.0,0.0493]
[1763681855437,0.39229605,86932.0,86922.0,0.47388]
[1763681855438,0.41610605,86932.0,86922.0,0.47388]
[1763681855750,0.00999999,86930.0,86922.0,0.3723183]
[1763681855951,0.00999999,86930.0,86924.0,0.0115181]
[1763681855952,0.03149605,86929.0,86924.0,0.0115181]
[1763681856142,0.00219803,86929.0,86928.0,0.0363775]
[1763681856342,0.05146803,86929.0,86923.0,0.0115182]
[1763681856543,0.02931566,86928.0,86923.0,0.0115182]
[1763681856849,0.00219803,86924.0,86923.0,0.02486]
[1763681857146,0.00219803,86924.0,86917.0,8.678e-05]
[1763681857147,0.04927,86918.0,86917.0,8.678e-05]
[1763681857343,0.08078369,86918.0,86917.0,8.678e-05]
[1763681858251,0.05532369,86918.0,86917.0,0.02494678]
[1763681858448,0.03151369,86918.0,86917.0,0.04938678]
[1763681859455,0.02931566,86918.0,86917.0,0.04938678]
[1763681859643,0.3608,86932.0,86931.0,0.0493]
[1763681859848,0.3923726,86932.0,86931.0,0.0493]
[1763681860355,0.4416426,86932.0,86931.0,0.02486]
[1763681860651,0.02381,86926.0,86920.0,0.0115185]
[1763681860865,0.00219803,86921.0,86920.0,0.0608185]
[1763681861244,0.0315726,86921.0,86920.0,0.0608185]
[1763681862143,0.0553826,86921.0,86920.0,0.0493]
[1763681862349,0.0315726,86921.0,86920.0,0.0493]
[1763681863253,0.0553826,86921.0,86920.0,0.02486]
[1763681863447,0.0808426,86921.0,86920.0,0.113]
[1763681863649,0.0923611,86921.0,86920.0,0.113]
[1763681863857,0.04927,86918.0,86917.0,8.678e-05]
[1763681864052,3.0,86900.0,86899.0,0.0493]
[1763681864250,3.0315726,86900.0,86899.0,0.1623]
[1763681865061,3.03167932,86900.0,86899.0,0.1623]
[1763681865357,3.39247932,86900.0,86899.0,0.1128846]
[1763681865558,3.4073561,86900.0,86899.0,0.1128846]
[1763681865859,3.4073561,86900.0,86899.0,0.11017996]
[1763681868360,3.4073561,86900.0,86899.0,0.12170136]
[1763681868560,3.4073561,86900.0,86899.0,0.11017996]
[1763681868763,0.02381,86889.0,86883.0,0.0115235]
[1763681868959,0.00219803,86884.0,86883.0,0.1737835]
[1763681869151,0.05146803,86884.0,86883.0,0.11296]
[1763681869353,0.05146803,86884.0,86878.0,0.0115241]
[1763681869354,0.04927,86879.0,86878.0,0.0115241]
[1763681869659,0.0808426,86879.0,86878.0,0.0115241]
[1763681870266,0.4561726,86879.0,86868.0,0.11292]
[1763681870456,0.4561726,86879.0,86873.0,0.0115247]
[1763681870457,0.02937457,86878.0,86873.0,0.0115247]
[1763681870656,0.05146803,86874.0,86872.0,0.0115249]
[1763681870856,0.05146803,86874.0,86873.0,0.02486]
[1763681871053,0.05146803,86874.0,86868.0,0.11292]
[1763681871054,0.08048875,86874.0,86869.0,0.0115253]
[1763681871257,0.07829072,86873.0,86872.0,0.02486]
[1763681871465,0.04927,86865.0,86859.0,0.3608]
[1763681871672,0.05146803,86860.0,86859.0,0.3608]
[1763681871975,0.05146803,86860.0,86830.0,0.21989532]
[1763681871976,0.04927,86859.0,86847.0,0.0115282]
[1763681872172,0.02900072,86859.0,86858.0,0.04944735]
[1763681872474,4e-08,86868.0,86867.0,0.0465656]
[1763681872779,0.3608,86889.0,86888.0,0.0465628]
[1763681872968,0.36299803,86889.0,86888.0,0.1596428]
[1763681873276,0.36299803,86889.0,86867.0,0.0115256]
[1763681873277,0.04927,86868.0,86867.0,0.0115256]
[1763681873467,0.05146803,86868.0,86867.0,0.0115256]
[1763681873868,0.05146803,86868.0,86864.0,0.011526]
[1763681874070,0.00219803,86868.0,86867.0,0.0493]
[1763681874579,0.05146803,86868.0,86863.0,0.3608]
[1763681874772,0.3608,86864.0,86859.0,0.0001726]
[1763681874968,0.00219803,86860.0,86859.0,0.0494726]
[1763681875468,0.01453,86879.0,86875.0,0.0493]
[1763681875665,0.00237063,86876.0,86875.0,0.0493]
[1763681876081,0.02618063,86876.0,86875.0,0.0493]
[1763681876482,0.00237063,86876.0,86875.0,0.0493]
[1763681876880,0.41244063,86876.0,86875.0,0.02486]
[1763681877073,0.41244063,86876.0,86872.0,0.11308]
[1763681877074,0.04927,86873.0,86872.0,0.11308]
[1763681877273,0.05146803,86873.0,86872.0,0.11308]
[1763681878278,0.05146803,86873.0,86859.0,0.0001726]
[1763681878279,0.04927,86860.0,86859.0,0.0001726]
[1763681878482,0.41226803,86860.0,86859.0,0.0001726]
[1763681880485,0.41226803,86860.0,86859.0,0.0116993]
[1763681881283,0.3608,86867.0,86866.0,0.0493]
[1763681881489,0.36299803,86867.0,86866.0,0.0493]
[1763681881780,0.0001726,86876.0,86865.0,0.0115259]
[1763681881985,0.00219803,86875.0,86874.0,0.0115247]
[1763681882178,0.02600803,86875.0,86874.0,0.0115247]
[1763681882480,0.02600803,86875.0,86874.0,0.0608247]
[1763681882481,0.00219803,86875.0,86874.0,0.0608247]
[1763681883373,0.3608,86884.0,86883.0,0.0590635]
[1763681883578,0.04007331,86890.0,86887.0,0.04754]
[1763681883783,0.04007331,86890.0,86869.0,0.11308]
[1763681883784,0.04976,86859.0,86854.0,0.3608]
[1763681884085,0.04976,86859.0,86849.0,0.3608]
[1763681884086,0.00999999,86850.0,86849.0,0.3608]
[1763681884287,0.00219803,86859.0,86858.0,0.04769]
[1763681884478,0.0310225,86859.0,86858.0,0.16093]
[1763681885189,0.03114598,86859.0,86858.0,0.16093]
[1763681885384,0.02894795,86859.0,86858.0,0.16093]
[1763681887289,0.0001727,86867.0,86866.0,0.0115257]
[1763681887491,0.0001727,86867.0,86866.0,0.3723257]
[1763681888186,0.04007405,86889.0,86878.0,0.0115242]
[1763681888388,0.04007405,86889.0,86866.0,0.3608]
[1763681888389,0.00224883,86888.0,86887.0,0.011523]
[1763681889300,5.08e-05,86888.0,86887.0,0.011523]
[1763681889588,0.0001727,86896.0,86895.0,0.0115219]
[1763681889791,0.04007405,86914.0,86899.0,0.0115214]
[1763681889993,0.00999999,86910.0,86899.0,0.0115214]
[1763681890288,0.40087405,86915.0,86899.0,0.0115214]
[1763681890489,0.3608,86915.0,86899.0,0.0115214]
[1763681890690,0.63713422,86900.0,86899.0,0.4115214]
[1763681891381,0.63933225,86900.0,86899.0,0.0115214]
[1763681891693,0.0001727,86908.0,86907.0,0.0115203]
[1763681891990,0.0001727,86908.0,86907.0,0.37451828]
[1763681892489,0.01318,86926.0,86925.0,0.0115179]
[1763681892692,0.01318,86926.0,86925.0,0.12691588]
[1763681893094,0.01391272,86926.0,86925.0,0.12691588]
[1763681893287,0.06367272,86926.0,86925.0,0.11539798]
[1763681894391,0.06467272,86926.0,86925.0,0.11539798]
[1763681895087,0.01491272,86926.0,86925.0,0.11539798]
[1763681895296,0.04048272,86926.0,86925.0,0.11539798]
[1763681895993,0.06467272,86926.0,86925.0,0.11539798]
[1763681896698,0.01391272,86926.0,86925.0,0.11539798]
[1763681896888,0.06367272,86926.0,86925.0,0.11539798]
[1763681897393,0.06367272,86926.0,86925.0,0.00219798]
[1763681897691,0.06294,86918.0,86917.0,0.0001726]
[1763681897892,0.06367272,86918.0,86917.0,0.11545058]
[1763681898190,0.06367272,86918.0,86917.0,0.00237058]
[1763681898390,0.06367272,86918.0,86917.0,0.11545058]
[1763681899094,0.06367272,86918.0,86917.0,0.12696958]
[1763681899293,0.06367272,86918.0,86890.0,0.23141782]
[1763681899294,0.04976,86885.0,86881.0,0.3608]
[1763681899592,0.05195803,86885.0,86883.0,0.0115234]
[1763681899792,0.01318,86892.0,86889.0,0.0115227]
[1763681899995,0.38637,86903.0,86902.0,0.011521]
[1763681900296,0.02874932,86903.0,86902.0,0.124721]
[1763681900495,0.0001726,86911.0,86909.0,0.01152]
[1763681900799,0.04976,86903.0,86902.0,0.1132]
[1763681900997,0.02557,86895.0,86894.0,0.0116946]
[1763681901189,0.02776803,86895.0,86894.0,0.0116946]
[1763681901582,0.02776803,86895.0,86894.0,0.1248946]
[1763681901998,0.05195803,86895.0,86894.0,0.1133726]
[1763681902293,0.01318,86898.0,86895.0,0.0115219]
[1763681902697,0.01537803,86898.0,86895.0,0.0115219]
[1763681903592,0.02557,86896.0,86895.0,0.0115219]
[1763681903789,0.00219803,86896.0,86895.0,0.0115219]
[1763681904798,0.00219803,86896.0,86895.0,0.3723219]
[1763681905196,0.02776803,86896.0,86895.0,0.3723219]
[1763681905696,0.00219803,86896.0,86895.0,0.0115219]
[1763681906492,0.04976,86895.0,86894.0,0.0001726]
[1763681906792,0.05195803,86895.0,86894.0,0.1132926]
[1763681907192,0.05195803,86895.0,86894.0,0.1248146]
[1763681907792,0.05195803,86895.0,86894.0,0.1258146]
[1763681909100,0.05195803,86895.0,86894.0,0.1248146]
[1763681909291,0.05195803,86895.0,86894.0,0.1132926]
[1763681910400,0.05195803,86895.0,86894.0,0.0001726]
[1763681910586,0.08072202,86895.0,86894.0,0.1132126]
[1763681912503,0.0449,86885.0,86884.0,0.11313604]
[1763681912801,0.04709803,86885.0,86884.0,0.11313604]
[1763681913604,0.04709803,86885.0,86884.0,0.18533604]
[1763681913791,0.04709803,86885.0,86884.0,0.18633604]
[1763681914294,0.00219803,86885.0,86884.0,0.18633604]
[1763681914494,0.37079999,86890.0,86889.0,0.1031]
[1763681914799,0.39180344,86890.0,86889.0,0.1031]
[1763681915106,0.03100344,86890.0,86889.0,0.1031]
[1763681917204,0.02880541,86890.0,86889.0,0.1031]
[1763681917798,0.3608,86917.0,86916.0,0.05305]
[1763681917988,0.39184286,86917.0,86916.0,0.2275391]
[1763681918296,0.02884483,86917.0,86916.0,0.2275391]
[1763681918502,0.02884483,86917.0,86916.0,0.2465991]
[1763681918899,0.001,86917.0,86916.0,0.2465991]
[1763681919603,0.0001726,86925.0,86924.0,0.1146181]
[1763681919792,0.00237063,86925.0,86924.0,0.1146181]
[1763681919994,0.02902916,86925.0,86924.0,0.1146181]
[1763681925098,0.03122719,86925.0,86924.0,0.1156181]
[1763681925299,0.13820719,86925.0,86924.0,0.1156181]
[1763681925498,0.03122719,86925.0,86924.0,0.1156181]
[1763681926599,0.13820719,86925.0,86924.0,0.001]
[1763681926799,0.10698,86917.0,86916.0,0.16597]
[1763681927009,0.13803459,86917.0,86916.0,0.16585]
[1763681927601,0.03105459,86917.0,86916.0,0.1031]
[1763681927803,0.02885656,86917.0,86916.0,0.1031]
[1763681928004,0.0001726,86925.0,86924.0,0.1031]
[1763681928203,0.03113727,86925.0,86924.0,0.1031]
[1763681928404,0.03113727,86925.0,86924.0,0.2273781]
[1763681928605,0.02893924,86925.0,86924.0,0.2273781]
[1763681928805,0.02893924,86925.0,86924.0,0.1146181]
[1763681929006,0.02893924,86925.0,86924.0,0.2273781]
[1763681931709,0.00999999,86940.0,86939.0,0.1050361]
[1763681932002,0.3608,86951.0,86950.0,0.09352]
[1763681932206,0.3608,86951.0,86950.0,0.20624]
[1763681932818,0.46997803,86951.0,86942.0,0.0001726]
[1763681933018,0.46778,86943.0,86942.0,0.0001726]
[1763681933315,0.46997803,86943.0,86942.0,0.0001726]
[1763681933709,0.46997803,86943.0,86942.0,0.2064126]
[1763681933710,0.10917803,86943.0,86942.0,0.2064126]
[1763681934014,0.10917803,86943.0,86942.0,0.1128926]
[1763681934617,0.10917803,86943.0,86942.0,0.0001726]
[1763681935211,0.10917803,86943.0,86942.0,0.1128526]
[1763681935617,0.10917803,86943.0,86942.0,0.0001726]
[1763681936011,0.10917803,86943.0,86942.0,0.1128526]
[1763681936719,0.10917803,86943.0,86942.0,0.0001726]
[1763681938023,0.10698,86941.0,86940.0,0.0308026]
[1763681938219,0.46997803,86941.0,86940.0,0.0308026]
[1763681938609,0.10698,86930.0,86929.0,0.0115173]
[1763681938816,0.10917803,86930.0,86929.0,0.1241573]
[1763681939019,0.14116803,86930.0,86929.0,0.1241573]
[1763681939522,0.14116803,86930.0,86929.0,0.0115173]
[1763681939722,0.14116803,86930.0,86929.0,0.1126]
[1763681940120,0.10917803,86930.0,86929.0,0.2157]
[1763681940425,0.00219803,86930.0,86929.0,0.2157]
[1763681941019,0.00219803,86930.0,86929.0,0.1031]
[1763681941226,0.0538226,86938.0,86937.0,0.1031]
[1763681941422,0.00237063,86938.0,86937.0,0.1031]
[1763681941610,0.00237063,86938.0,86937.0,0.2157]
[1763681941814,0.00237063,86938.0,86937.0,0.1031]
[1763681942214,0.00237063,86938.0,86937.0,0.21566]
[1763681944111,0.02882051,86938.0,86937.0,0.21566]
[1763681945213,0.3608,86951.0,86950.0,0.10466]
[1763681945431,0.46702803,86951.0,86950.0,0.21718]
[1763681946822,0.46702803,86951.0,86950.0,0.2286946]
[1763681948629,0.46802803,86951.0,86950.0,0.10466]
[1763681948830,0.46802803,86951.0,86950.0,0.21714]
[1763681949017,0.46802803,86951.0,86950.0,0.11248]
[1763681949730,0.10403,86944.0,86943.0,0.0621155]
[1763681950028,0.46702803,86944.0,86943.0,0.11248]
[1763681950329,0.10403,86943.0,86942.0,0.0116883]
[1763681950526,0.10622803,86943.0,86942.0,0.1241683]
[1763681951027,0.10622803,86943.0,86942.0,0.1126526]
[1763681951423,0.10622803,86943.0,86942.0,0.0001726]
[1763681951723,0.10622803,86943.0,86942.0,0.2172726]
[1763681952024,0.00219803,86943.0,86942.0,0.2172726]
[1763681953923,0.46702803,86943.0,86942.0,0.0001726]
[1763681954122,0.10403,86920.0,86919.0,0.46546]
[1763681954432,0.10622803,86920.0,86919.0,0.46546]
[1763681954631,0.00219803,86920.0,86919.0,0.46546]
[1763681955132,0.05302803,86920.0,86919.0,0.10466]
[1763681955338,0.13451803,86920.0,86919.0,0.10466]
[1763681955523,0.13451803,86920.0,86919.0,0.11244]
[1763681955923,0.05083,86914.0,86913.0,0.1161795]
[1763681956232,0.05302803,86914.0,86913.0,0.2286195]
[1763681956429,0.10622803,86914.0,86913.0,0.11244]
[1763681956636,0.1155496,86912.0,86911.0,0.0001726]
[1763681956832,0.10403,86903.0,86893.0,0.3608]
[1763681957019,0.10622803,86894.0,86893.0,0.3608]
[1763681957332,0.05083,86885.0,86884.0,0.05069604]
[1763681957629,0.10622803,86885.0,86884.0,0.16309604]
[1763681957937,0.13464229,86885.0,86884.0,9.604e-05]
[1763681958436,0.10403,86877.0,86876.0,0.0001726]
[1763681958637,0.10403,86853.0,86852.0,0.3608]
[1763681958826,0.10403,86853.0,86834.0,0.75022]
[1763681958827,0.05083,86846.0,86845.0,0.3608]
[1763681959021,0.05083,86846.0,86845.0,0.47336]
[1763681959022,0.10622803,86846.0,86845.0,0.47336]
[1763681959228,0.00219803,86846.0,86845.0,0.57802]
[1763681959535,0.10632407,86846.0,86845.0,0.47336]
[1763681959939,0.10632407,86846.0,86845.0,0.52396]
[1763681960328,0.10632407,86846.0,86845.0,0.52496]
[1763681960537,0.10632407,86846.0,86845.0,0.16416]
[1763681961037,0.10632407,86846.0,86845.0,0.11356]
[1763681961435,0.00229407,86846.0,86845.0,0.21822]
[1763681961640,0.0001727,86854.0,86853.0,0.1447075]
[1763681961836,0.3608,86869.0,86853.0,0.3608]
[1763681961837,0.10403,86859.0,86853.0,0.3608]
[1763681962042,0.00219803,86858.0,86857.0,0.0506]
[1763681962228,0.10622803,86858.0,86845.0,0.3618]
[1763681962430,0.10622803,86858.0,86846.0,0.11256]
[1763681962629,0.05083,86854.0,86853.0,0.001]
[1763681962846,0.00219803,86854.0,86853.0,0.21822]
[1763681963128,0.1042027,86862.0,86853.0,0.11356]
[1763681963332,0.00219803,86854.0,86853.0,0.21722]
[1763681963634,0.00219803,86854.0,86853.0,0.16316]
[1763681963826,0.10622803,86854.0,86853.0,0.11256]
[1763681964030,0.46702803,86854.0,86853.0,0.11256]
[1763681964235,0.0532,86847.0,86825.0,0.3608]
[1763681964438,0.05302803,86826.0,86825.0,0.10466]
[1763681964647,0.00219803,86826.0,86825.0,0.10466]
[1763681964828,0.03828999,86840.0,86825.0,0.10466]
[1763681965030,0.10622803,86839.0,86822.0,0.07864]
[1763681965233,0.00999999,86830.0,86829.0,0.10466]
[1763681965541,0.3608,86837.0,86836.0,0.10466]
[1763681965739,0.3608,86855.0,86854.0,0.10466]
[1763681965940,0.3608,86855.0,86854.0,0.21726]
[1763681966139,0.3608,86872.0,86871.0,0.10466]
[1763681966441,0.46702803,86872.0,86871.0,0.11264]
[1763681967646,0.46702803,86872.0,86871.0,0.16324]
[1763681967851,0.36299803,86872.0,86871.0,0.2173]
[1763681968143,0.46702803,86872.0,86871.0,0.11264]
[1763681968335,0.46702803,86872.0,86871.0,0.01606123]
[1763681968541,0.10403,86864.0,86863.0,0.0001727]
[1763681968735,0.10403,86864.0,86842.0,0.02862]
[1763681968736,0.00899999,86850.0,86843.0,0.3608]
[1763681969042,0.00899999,86840.0,86834.0,0.3608]
[1763681969243,0.00219803,86839.0,86834.0,0.1126]
[1763681969443,0.3608,86856.0,86849.0,0.10466]
[1763681969651,0.00219803,86852.0,86851.0,0.10466]
[1763681969844,0.00219803,86852.0,86851.0,0.2173]
[1763681970946,0.0001727,86861.0,86860.0,0.10466]
[1763681971152,0.00899999,86880.0,86869.0,0.10466]
[1763681971341,0.00219803,86861.0,86860.0,0.10466]
[1763681971541,0.00219803,86861.0,86860.0,0.2173]
[1763681971939,0.3608,86881.0,86880.0,0.10466]
[1763681972242,0.3608,86881.0,86876.0,0.11264]
[1763681972243,0.05083,86877.0,86876.0,0.11264]
[1763681972443,0.10622803,86877.0,86876.0,0.11264]
[1763681973453,0.00219803,86877.0,86876.0,0.21025]
[1763681973647,0.05326803,86877.0,86876.0,0.11264]
[1763681973848,0.10436803,86877.0,86876.0,0.11264]
[1763681975150,0.10436803,86877.0,86872.0,0.0001727]
[1763681975151,0.05107,86873.0,86872.0,0.0001727]
[1763681975354,0.00219803,86873.0,86872.0,0.0962227]
[1763681976448,0.09610803,86873.0,86872.0,0.0001727]
[1763681976846,0.00899999,86860.0,86854.0,0.1126]
[1763681977155,0.00219803,86855.0,86854.0,0.1126]
[1763681977455,0.09391,86843.0,86828.0,0.02862]
[1763681977648,0.36979999,86840.0,86828.0,0.02862]
[1763681977841,0.00219803,86839.0,86838.0,0.09605]
[1763681980253,0.3609727,86847.0,86846.0,0.1075784]
[1763681980254,0.0001727,86847.0,86846.0,0.1075784]
[1763681980460,0.3608,86858.0,86857.0,0.09605]
[1763681980648,0.38888079,86858.0,86857.0,0.20861]
[1763681981143,0.00219803,86858.0,86857.0,0.20861]
[1763681981546,0.09610803,86858.0,86857.0,0.11256]
[1763681982356,0.12424616,86858.0,86857.0,0.11256]
[1763681982759,0.07579616,86858.0,86857.0,0.16007]
[1763681983150,0.07579616,86858.0,86857.0,0.11256]
[1763681983360,0.12424616,86858.0,86857.0,0.11256]
[1763681983860,0.03033616,86858.0,86857.0,0.20861]
[1763681984454,0.07579616,86858.0,86857.0,0.20861]
[1763681985057,0.03033616,86858.0,86857.0,0.20861]
[1763681985458,0.12424616,86858.0,86857.0,0.11256]
[1763681985661,0.02813813,86858.0,86857.0,0.20861]
[1763681985960,0.03033616,86858.0,86857.0,0.20861]
[1763681986666,0.39113616,86858.0,86857.0,0.20861]
[1763681986963,0.49657296,86858.0,86857.0,0.11256]
[1763681987757,0.48504616,86858.0,86857.0,0.11256]
[1763681988157,0.45690803,86858.0,86857.0,0.11256]
[1763681988452,0.54497026,86858.0,86857.0,0.11256]
[1763681988860,0.49652026,86858.0,86857.0,0.20861]
[1763681989056,0.48485919,86858.0,86857.0,0.11256]
[1763681989257,0.54497026,86858.0,86857.0,0.11256]
[1763681989457,0.48485919,86858.0,86857.0,0.11256]
[1763681991267,0.09391,86850.0,86849.0,0.0001727]
[1763681991562,0.49638709,86850.0,86849.0,0.0001727]
[1763681991865,0.0115295,86838.0,86833.0,0.11244]
[1763681992163,0.00219803,86834.0,86833.0,0.20849]
[1763681992463,0.03014919,86834.0,86833.0,0.20849]
[1763681992959,0.0602821,86841.0,86833.0,0.20849]
[1763681992960,0.04018807,86841.0,86839.0,0.09605]
[1763681993160,0.0001727,86842.0,86841.0,0.09605]
[1763681993366,0.04018807,86849.0,86848.0,0.09605]
[1763681993559,0.04018807,86858.0,86857.0,0.09605]
[1763681993754,0.04239749,86858.0,86857.0,0.04751]
[1763681993954,0.00219803,86858.0,86857.0,0.04751]
[1763681994271,0.04765803,86858.0,86857.0,0.09605]
[1763681994760,0.04765803,86858.0,86853.0,0.11244]
[1763681994966,0.09391,86854.0,86853.0,0.11244]
[1763681995160,0.04765803,86854.0,86853.0,0.20849]
[1763681995359,0.04765803,86854.0,86853.0,0.11244]
[1763681995360,0.09610803,86854.0,86853.0,0.11244]
[1763681995964,0.09610803,86854.0,86853.0,0.15995]
[1763681996163,0.13632585,86854.0,86853.0,0.15995]
[1763681996665,0.09610803,86854.0,86853.0,0.15995]
[1763681996866,0.00219803,86854.0,86853.0,0.23594]
[1763681997559,0.40101776,86859.0,86858.0,0.09605]
[1763681997758,0.3608,86859.0,86858.0,0.1075768]
[1763681997970,0.0001727,86866.0,86864.0,0.09605]
[1763681997971,0.04021776,86865.0,86864.0,0.09605]
[1763681998267,0.00219803,86865.0,86864.0,0.09605]
[1763682000665,0.3608,86867.0,86866.0,0.09605]
[1763682000864,0.36299803,86867.0,86866.0,0.09605]
[1763682001369,0.09391,86859.0,86858.0,0.09605]
[1763682001677,0.09610803,86859.0,86858.0,0.20841]
[1763682002563,0.00219803,86859.0,86858.0,0.2199368]
[1763682002767,0.00219803,86859.0,86858.0,0.20841]
[1763682003167,0.09781803,86859.0,86858.0,0.20841]
[1763682003664,0.09781803,86859.0,86858.0,0.09605]
[1763682003869,0.09781803,86859.0,86858.0,0.20841]
[1763682004070,0.00219803,86859.0,86858.0,0.20841]
[1763682005061,0.02893157,86859.0,86858.0,0.20841]
[1763682006175,0.38973157,86859.0,86858.0,0.20841]
[1763682006580,0.48535157,86859.0,86858.0,0.11236]
[1763682007162,0.48535157,86859.0,86858.0,0.20653]
[1763682007367,0.43857157,86859.0,86858.0,0.20653]
[1763682007667,0.38973157,86859.0,86858.0,0.20653]
[1763682007978,0.0001727,86867.0,86866.0,0.1056957]
[1763682008179,0.0602821,86879.0,86878.0,0.0901842]
[1763682008364,0.0602821,86885.0,86884.0,0.0901834]
[1763682008570,0.00219803,86894.0,86893.0,0.07866]
[1763682008870,0.00219803,86894.0,86893.0,0.19098]
[1763682009066,0.38768,86904.0,86903.0,0.0115208]
[1763682009267,0.36299803,86904.0,86903.0,0.0901808]
[1763682009474,0.0001727,86912.0,86911.0,0.0901798]
[1763682009671,0.0001727,86912.0,86911.0,0.2024998]
[1763682009973,0.3608,86932.0,86927.0,0.03933]
[1763682010179,0.00219803,86928.0,86927.0,0.19098]
[1763682010967,0.3608,86932.0,86931.0,0.07866]